bitfinex/quotes_SOLUSD_20250425
["timestamp","ask_amount","ask_price","bid_price","bid_amount"]
[1745569112234,12.02470251,154.77,154.75,94.4]
[1745569112437,12.02470251,154.76,154.75,94.4]
[1745569112663,12.02470251,154.77,154.75,81.2]
[1745569112976,12.02470251,154.77,154.74,0.063]
[1745569112977,12.02470251,154.76,154.74,0.063]
[1745569113157,33.7473,154.79,154.74,0.063]
[1745569113158,12.02470251,154.75,154.74,0.063]
[1745569115183,33.7473,154.79,154.74,0.063]
[1745569115349,20.8657,154.83,154.75,12.02470251]
[1745569115557,12.02470251,154.79,154.75,12.02470251]
[1745569117478,12.02470251,154.78,154.74,12.08770251]
[1745569117669,26.0,154.82,154.74,0.063]
[1745569117670,12.02470251,154.77,154.74,0.063]
[1745569117880,12.02470251,154.78,154.74,0.063]
[1745569119891,12.02470251,154.78,154.74,12.08770251]
[1745569120092,12.02470251,154.8,154.75,12.02470251]
[1745569120466,12.02470251,154.79,154.75,12.02470251]
[1745569121073,12.02470251,154.8,154.75,12.02470251]
[1745569122082,12.02470251,154.8,154.76,12.02470251]
[1745569122388,12.02470251,154.81,154.76,12.02470251]
[1745569124466,12.02470251,154.81,154.76,18.48627783]
[1745569124982,12.02470251,154.81,154.77,12.02470251]
[1745569128781,7.7457,154.83,154.79,12.02470251]
[1745569128782,12.02470251,154.83,154.79,12.02470251]
[1745569129688,12.02470251,154.84,154.8,12.02470251]
[1745569130492,12.02470251,154.83,154.79,12.02470251]
[1745569130802,12.02470251,154.82,154.77,12.02470251]
[1745569131175,12.02470251,154.82,154.78,12.02470251]
[1745569133004,12.02470251,154.83,154.78,12.02470251]
[1745569133187,12.02470251,154.84,154.8,12.02470251]
[1745569133374,0.03,154.87,154.82,12.02470251]
[1745569133696,12.05470251,154.87,154.82,12.02470251]
[1745569133871,12.05470251,154.87,154.83,12.02470251]
[1745569133872,0.03,154.87,154.83,12.02470251]
[1745569134073,0.03,154.87,154.85,12.02470251]
[1745569134395,0.03,154.87,154.82,26.0]
[1745569134396,0.03,154.87,154.86,12.02470251]
[1745569136605,18.64964886,154.86,154.82,1.29137991]
[1745569136807,18.64964886,154.86,154.74,0.063]
[1745569136808,26.0,154.78,154.74,0.063]
[1745569137105,12.02470251,154.75,154.71,6.61300784]
[1745569137280,12.02470251,154.75,154.69,31.79926338]
[1745569137281,1.29137991,154.74,154.69,12.08770251]
[1745569137608,12.02470251,154.76,154.71,12.02470251]
[1745569137975,1.29137991,154.75,154.71,12.02470251]
[1745569138285,1.29137991,154.75,154.7,12.08770251]
[1745569138491,12.02470251,154.75,154.7,12.08770251]
[1745569139903,12.02470251,154.76,154.71,12.02470251]
[1745569140204,13.31608242,154.77,154.73,12.02470251]
[1745569140506,12.02470251,154.76,154.71,12.02470251]
[1745569140805,13.31608242,154.77,154.73,12.02470251]
[1745569141305,13.31608242,154.77,154.72,12.02470251]
[1745569141495,12.02470251,154.76,154.71,12.02470251]
[1745569142306,12.02470251,154.76,154.72,12.02470251]
[1745569142799,26.0,154.83,154.73,13.2]
[1745569142978,12.02470251,154.81,154.76,12.02470251]
[1745569143380,12.02470251,154.78,154.73,112.72780251]
[1745569143578,12.02470251,154.78,154.73,106.42470251]
[1745569143800,12.02470251,154.77,154.73,106.42470251]
[1745569147992,12.02470251,154.79,154.74,12.02470251]
[1745569148316,12.02470251,154.79,154.75,12.02470251]
[1745569148484,12.02470251,154.8,154.76,12.02470251]
[1745569149598,1.29137991,154.82,154.76,12.02470251]
[1745569149795,12.02470251,154.81,154.77,12.02470251]
[1745569150004,12.02470251,154.8,154.76,13.55480251]
[1745569151015,1.29137991,154.83,154.76,13.55480251]
[1745569151192,12.02470251,154.81,154.76,13.55480251]
[1745569152811,12.02470251,154.82,154.77,12.02470251]
[1745569153508,12.02470251,154.82,154.78,12.02470251]
[1745569153716,1.32137991,154.84,154.81,12.02470251]
[1745569153717,0.03,154.84,154.81,12.02470251]
[1745569155915,0.03,154.84,154.82,12.02470251]
[1745569156591,0.03,154.84,154.81,12.02470251]
[1745569157420,0.03,154.84,154.82,12.02470251]
[1745569158189,0.03,154.84,154.83,12.02470251]
[1745569160001,0.03,154.84,154.8,18.79181043]
[1745569160218,0.03,154.84,154.83,12.02470251]
[1745569160401,0.03,154.84,154.8,18.79181043]
[1745569160402,0.03,154.84,154.79,1.2915754]
[1745569160719,0.03,154.84,154.81,12.02470251]
[1745569161911,0.03,154.84,154.8,12.02470251]
[1745569162423,0.03,154.84,154.74,16.15549556]
[1745569162424,12.02470251,154.81,154.75,12.02470251]
[1745569162640,12.02470251,154.8,154.75,12.02470251]
[1745569162791,12.02470251,154.77,154.74,94.4]
[1745569164429,12.02470251,154.78,154.74,94.4]
[1745569165224,12.02470251,154.78,154.74,106.42470251]
[1745569165424,12.02470251,154.78,154.74,94.4]
[1745569165594,12.02470251,154.77,154.74,94.4]
[1745569166099,12.02470251,154.76,154.74,13.2]
[1745569166599,12.02470251,154.77,154.74,13.2]
[1745569168132,12.02470251,154.76,154.74,13.2]
[1745569168333,12.02470251,154.75,154.72,1.5624]
[1745569168548,12.02470251,154.74,154.7,51.28770251]
[1745569168703,12.02470251,154.74,154.7,25.28770251]
[1745569169022,12.02470251,154.72,154.7,13.263]
[1745569169336,12.02470251,154.71,154.7,0.063]
[1745569174518,24.04940502,154.71,154.7,0.063]
[1745569174721,30.5131113,154.71,154.7,0.063]
[1745569175033,31.80449121,154.71,154.7,0.063]
[1745569175231,26.0,154.68,154.67,0.063]
[1745569175537,39.31608242,154.68,154.67,0.063]
[1745569175723,39.31608242,154.68,154.58,38.02470251]
[1745569175724,12.02470251,154.62,154.58,38.02470251]
[1745569176736,12.02470251,154.63,154.59,12.02470251]
[1745569176922,12.02470251,154.63,154.59,18.49335554]
[1745569177123,12.02470251,154.63,154.59,12.02470251]
[1745569177437,27.29137991,154.68,154.59,12.02470251]
[1745569177635,12.02470251,154.63,154.59,12.02470251]
[1745569178149,12.02470251,154.63,154.59,18.49336545]
[1745569178311,12.02470251,154.63,154.59,12.02470251]
[1745569178635,12.02470251,154.62,154.58,93.22470251]
[1745569178836,12.02470251,154.61,154.58,81.2]
[1745569179137,12.02470251,154.6,154.56,120.88130251]
[1745569181241,12.02470251,154.61,154.57,12.02470251]
[1745569182520,12.02470251,154.61,154.56,127.35125311]
[1745569183538,12.02470251,154.61,154.57,12.02470251]
[1745569184240,1.29137991,154.6,154.53,25.18375898]
[1745569184543,12.02470251,154.6,154.55,12.02470251]
[1745569184754,12.02470251,154.6,154.56,12.02470251]
[1745569185043,1.29137991,154.63,154.57,12.02470251]
[1745569185344,12.02470251,154.61,154.57,12.02470251]
[1745569185845,12.02470251,154.61,154.56,12.02470251]
[1745569187316,12.02470251,154.61,154.57,12.02470251]
[1745569191054,12.02470251,154.59,154.55,12.02470251]
[1745569191236,12.02470251,154.6,154.55,12.02470251]
[1745569191534,12.02470251,154.6,154.56,12.02470251]
[1745569191935,12.02470251,154.6,154.55,81.2]
[1745569192134,12.02470251,154.6,154.56,12.02470251]
[1745569192556,12.02470251,154.6,154.55,93.22470251]
[1745569192856,12.02470251,154.59,154.55,81.2]
[1745569193239,12.02470251,154.58,154.55,81.2]
[1745569193443,12.02470251,154.6,154.55,93.22470251]
[1745569193645,12.02470251,154.59,154.55,99.69504631]
[1745569193842,12.02470251,154.59,154.55,93.22470251]
[1745569194156,12.02470251,154.59,154.55,99.69503453]
[1745569194659,12.02470251,154.6,154.55,99.69503453]
[1745569195360,1.29137991,154.63,154.58,12.02470251]
[1745569195361,12.02470251,154.62,154.58,12.02470251]
[1745569195947,12.02470251,154.61,154.56,12.02470251]
[1745569196433,12.02470251,154.6,154.56,18.49455145]
[1745569197366,7.71320689,154.6,154.56,14.18305583]
[1745569197747,7.71320689,154.61,154.56,14.18305583]
[1745569200269,7.71320689,154.6,154.55,88.91320689]
[1745569200444,7.71320689,154.58,154.55,81.2]
[1745569201063,7.71320689,154.57,154.53,81.263]
[1745569201268,1.29137991,154.61,154.53,81.263]
[1745569201269,7.71320689,154.56,154.53,81.263]
[1745569201570,7.71320689,154.57,154.53,14.24725759]
[1745569202870,7.71320689,154.57,154.53,7.77620689]
[1745569203242,7.71320689,154.57,154.53,0.063]
[1745569203442,7.71320689,154.56,154.53,0.063]
[1745569205578,1.29137991,154.59,154.53,0.063]
[1745569205765,7.71320689,154.57,154.53,0.063]
[1745569206949,9.0045868,154.6,154.55,7.71320689]
[1745569207150,9.0045868,154.6,154.56,7.71320689]
[1745569207151,7.71320689,154.6,154.56,7.71320689]
[1745569207464,9.0045868,154.62,154.57,7.71320689]
[1745569208379,7.71320689,154.6,154.56,7.71320689]
[1745569208573,7.71320689,154.6,154.55,14.18338072]
[1745569208754,7.71320689,154.58,154.54,9.34300689]
[1745569209154,7.71320689,154.59,154.54,9.34300689]
[1745569209550,7.71320689,154.58,154.54,9.34300689]
[1745569209776,7.71320689,154.59,154.54,15.81382206]
[1745569210152,7.71320689,154.59,154.55,7.71320689]
[1745569214679,7.71320689,154.59,154.54,14.18397483]
[1745569216186,7.71320689,154.59,154.54,7.71320689]
[1745569216387,9.0045868,154.58,154.53,114.97620689]
[1745569216561,7.71320689,154.56,154.53,81.263]
[1745569216762,7.71320689,154.56,154.53,0.063]
[1745569216984,7.71320689,154.57,154.53,7.77620689]
[1745569217984,7.71320689,154.57,154.53,0.063]
[1745569219882,7.71320689,154.56,154.53,0.063]
[1745569220469,7.71320689,154.55,154.53,0.063]
[1745569220664,1.29137991,154.6,154.53,0.063]
[1745569220665,9.0045868,154.54,154.53,0.063]
[1745569220869,7.71320689,154.54,154.53,0.063]
[1745569221390,7.71320689,154.55,154.53,0.063]
[1745569224782,1.29137991,154.59,154.53,7.77620689]
[1745569224977,9.0045868,154.59,154.54,7.71320689]
[1745569226005,7.71320689,154.58,154.53,14.24726161]
[1745569230319,7.71320689,154.58,154.53,95.44726161]
[1745569230818,7.71320689,154.57,154.53,88.97620689]
[1745569232310,7.71320689,154.58,154.53,88.97620689]
[1745569232515,1.29137991,154.57,154.53,88.97620689]
[1745569232818,9.0045868,154.57,154.53,88.97620689]
[1745569234498,7.71320689,154.57,154.53,88.97620689]
[1745569234920,7.71320689,154.58,154.53,95.44738806]
[1745569235624,7.71320689,154.58,154.53,88.97620689]
[1745569236025,7.71320689,154.58,154.53,95.44740159]
[1745569236321,7.71320689,154.58,154.54,7.71320689]
[1745569236539,9.0045868,154.6,154.55,7.71320689]
[1745569237127,7.71320689,154.59,154.55,7.71320689]
[1745569239038,7.71320689,154.6,154.55,7.71320689]
[1745569239222,7.71320689,154.6,154.55,14.18333765]
[1745569240326,9.0045868,154.62,154.58,7.71320689]
[1745569240529,1.29137991,154.62,154.58,7.71320689]
[1745569241100,9.0345868,154.64,154.56,1.2936268]
[1745569241306,1.32137991,154.64,154.6,7.71320689]
[1745569241505,9.0345868,154.64,154.6,7.71320689]
[1745569241918,7.71320689,154.63,154.59,7.71320689]
[1745569244511,7.74320689,154.64,154.59,7.71320689]
[1745569244723,7.74320689,154.64,154.59,14.18190006]
[1745569244927,0.03,154.64,154.61,7.71320689]
[1745569245319,0.03,154.64,154.63,7.71320689]
[1745569246005,0.03,154.64,154.62,7.71320689]
[1745569247632,0.03,154.64,154.61,88.91320689]
[1745569249642,0.03,154.64,154.61,81.2]
[1745569249817,0.03,154.64,154.61,88.91320689]
[1745569250017,7.74320689,154.64,154.61,81.2]
[1745569250736,7.71320689,154.63,154.59,7.71320689]
[1745569251244,9.0045868,154.62,154.58,81.2]
[1745569252743,7.71320689,154.62,154.58,88.91320689]
[1745569252944,7.71320689,154.63,154.59,7.71320689]
[1745569253426,0.03,154.64,154.6,7.71320689]
[1745569253622,7.74320689,154.64,154.6,7.71320689]
[1745569257344,7.74320689,154.64,154.58,87.66907031]
[1745569257532,7.74320689,154.64,154.6,7.71320689]
[1745569258747,7.74320689,154.64,154.59,7.71320689]
[1745569259747,9.0045868,154.63,154.58,88.91320689]
[1745569260047,7.71320689,154.63,154.58,88.91320689]
[1745569261460,0.03,154.64,154.59,7.71320689]
[1745569261629,7.74320689,154.64,154.59,7.71320689]
[1745569262151,9.0045868,154.63,154.59,7.71320689]
[1745569263636,7.71320689,154.63,154.59,7.71320689]
[1745569264247,9.0345868,154.64,154.59,7.71320689]
[1745569264555,9.0345868,154.64,154.6,7.71320689]
[1745569264854,0.03,154.64,154.61,7.71320689]
[1745569265230,0.03,154.64,154.62,7.71320689]
[1745569265431,0.03,154.64,154.61,7.71320689]
[1745569270528,0.03,154.64,154.62,7.71320689]
[1745569271260,0.03,154.64,154.63,7.71320689]
[1745569273528,0.03,154.64,154.61,7.71320689]
[1745569275635,0.03,154.64,154.6,7.71320689]
[1745569276353,0.03,154.64,154.61,7.71320689]
[1745569282156,7.71320689,154.63,154.59,88.91320689]
[1745569282662,7.74320689,154.64,154.59,88.91320689]
[1745569283676,7.71320689,154.62,154.59,81.2]
[1745569283960,7.71320689,154.62,154.57,48.37120689]
[1745569284134,7.71320689,154.62,154.57,22.37120689]
[1745569290370,9.0045868,154.61,154.57,13.04]
[1745569290551,7.71320689,154.6,154.56,7.71320689]
[1745569290743,9.0045868,154.59,154.55,88.91320689]
[1745569290944,7.71320689,154.59,154.55,88.91320689]
[1745569293944,7.71320689,154.6,154.55,88.91320689]
[1745569294147,1.29137991,154.62,154.58,7.71320689]
[1745569294449,9.0045868,154.62,154.58,7.71320689]
[1745569295246,7.71320689,154.61,154.57,7.71320689]
[1745569295449,7.71320689,154.61,154.56,7.71320689]
[1745569300271,9.0045868,154.6,154.56,7.71320689]
[1745569300488,9.0045868,154.6,154.55,88.91320689]
[1745569301587,1.29137991,154.62,154.56,7.71320689]
[1745569301882,7.71320689,154.61,154.56,7.71320689]
[1745569302086,9.0045868,154.6,154.56,7.71320689]
[1745569302289,7.71320689,154.6,154.56,7.71320689]
[1745569305465,7.71320689,154.61,154.56,7.71320689]
[1745569305805,7.71320689,154.62,154.57,7.71320689]
[1745569307995,7.71320689,154.63,154.58,7.71320689]
[1745569308304,9.0045868,154.62,154.57,7.71320689]
[1745569311999,9.0045868,154.62,154.56,7.71320689]
[1745569312185,7.71320689,154.6,154.55,81.2]
[1745569312498,7.71320689,154.6,154.55,88.91320689]
[1745569314407,7.71320689,154.61,154.55,88.91320689]
[1745569316790,7.71320689,154.6,154.55,81.2]
[1745569316985,7.71320689,154.59,154.54,7.71320689]
[1745569317179,7.71320689,154.57,154.53,94.303]
[1745569317685,7.71320689,154.57,154.53,81.263]
[1745569318104,7.71320689,154.57,154.53,0.063]
[1745569319506,1.29137991,154.61,154.53,7.77620689]
[1745569319692,7.71320689,154.58,154.53,7.77620689]
[1745569320208,7.71320689,154.56,154.53,0.063]
[1745569322413,7.71320689,154.55,154.53,0.063]
[1745569322593,9.0045868,154.54,154.53,0.063]
[1745569325385,15.47540341,154.54,154.53,0.063]
[1745569325704,42.17565227,154.54,154.53,0.063]
[1745569325895,55.21565227,154.54,154.53,0.063]
[1745569326611,26.14216157,154.51,154.5,0.063]
[1745569326911,18.64964886,154.5,154.49,0.063]
[1745569327094,26.36285575,154.5,154.49,0.063]
[1745569327488,26.50501732,154.5,154.49,0.063]
[1745569328488,14.18569879,154.5,154.49,0.063]
[1745569329712,7.71320689,154.5,154.49,0.063]
[1745569333426,1.29137991,154.51,154.49,0.063]
[1745569333427,9.0045868,154.51,154.49,0.063]
[1745569333799,1.29137991,154.52,154.49,0.063]
[1745569334014,7.71320689,154.51,154.49,0.063]
[1745569334819,7.71320689,154.5,154.49,0.063]
[1745569336519,1.29137991,154.53,154.49,0.063]
[1745569336694,7.71320689,154.52,154.49,0.063]
[1745569336897,7.71320689,154.51,154.49,0.063]
[1745569337313,1.29137991,154.53,154.49,0.063]
[1745569337492,7.71320689,154.53,154.49,7.77620689]
[1745569337695,9.0045868,154.54,154.49,7.77620689]
[1745569337925,7.71320689,154.54,154.5,7.71320689]
[1745569338605,1.29137991,154.57,154.52,7.71320689]
[1745569338803,7.71320689,154.57,154.52,7.71320689]
[1745569339531,1.29137991,154.59,154.53,7.71320689]
[1745569339704,7.71320689,154.58,154.53,7.71320689]
[1745569340037,7.71320689,154.57,154.52,88.91320689]
[1745569340207,9.0045868,154.56,154.52,81.2]
[1745569340409,7.71320689,154.56,154.52,81.2]
[1745569341729,7.71320689,154.54,154.52,81.2]
[1745569341933,7.71320689,154.53,154.49,88.97620689]
[1745569342735,7.71320689,154.54,154.49,88.97620689]
[1745569344321,7.71320689,154.54,154.5,7.71320689]
[1745569346023,7.71320689,154.54,154.49,88.97620689]
[1745569346219,7.71320689,154.53,154.49,88.97620689]
[1745569346641,7.71320689,154.53,154.49,81.263]
[1745569348122,7.71320689,154.53,154.49,88.97620689]
[1745569350643,7.71320689,154.53,154.49,7.77620689]
[1745569351046,7.71320689,154.55,154.5,7.71320689]
[1745569351226,1.29137991,154.59,154.54,7.71320689]
[1745569351549,9.0045868,154.59,154.54,7.71320689]
[1745569351726,7.71320689,154.58,154.53,7.71320689]
[1745569351925,1.29137991,154.57,154.53,7.71320689]
[1745569352153,9.0045868,154.57,154.52,7.71320689]
[1745569352541,9.0045868,154.57,154.51,7.71320689]
[1745569352542,7.71320689,154.55,154.51,7.71320689]
[1745569353532,7.71320689,154.56,154.51,7.71320689]
[1745569354650,7.71320689,154.57,154.52,7.71320689]
[1745569354948,7.71320689,154.56,154.52,7.71320689]
[1745569355957,9.0045868,154.55,154.5,7.71320689]
[1745569356336,7.71320689,154.54,154.5,7.71320689]
[1745569356530,7.71320689,154.54,154.49,7.77620689]
[1745569357028,7.71320689,154.53,154.49,7.77620689]
[1745569357954,7.71320689,154.54,154.49,7.77620689]
[1745569358258,7.71320689,154.55,154.5,7.71320689]
[1745569358966,7.71320689,154.53,154.49,0.063]
[1745569360639,7.71320689,154.54,154.49,7.77620689]
[1745569361564,7.71320689,154.55,154.5,7.71320689]
[1745569362555,9.0045868,154.56,154.51,7.71320689]
[1745569362763,1.29137991,154.57,154.51,7.71320689]
[1745569362934,7.71320689,154.56,154.51,7.71320689]
[1745569363250,9.0045868,154.58,154.53,7.71320689]
[1745569363970,1.29137991,154.58,154.54,7.71320689]
[1745569364145,7.71320689,154.61,154.57,7.71320689]
[1745569364558,7.71320689,154.61,154.56,7.71320689]
[1745569365341,9.0045868,154.6,154.55,7.71320689]
[1745569365970,7.71320689,154.58,154.53,7.71320689]
[1745569366173,7.71320689,154.58,154.53,88.91320689]
[1745569366671,7.71320689,154.58,154.54,7.71320689]
[1745569366848,7.71320689,154.59,154.55,7.71320689]
[1745569367872,7.71320689,154.6,154.56,7.71320689]
[1745569370653,7.71320689,154.59,154.55,7.71320689]
[1745569372076,7.71320689,154.6,154.55,7.71320689]
[1745569372569,7.71320689,154.6,154.56,7.71320689]
[1745569373168,7.71320689,154.61,154.56,7.71320689]
[1745569376673,7.71320689,154.6,154.56,7.71320689]
[1745569377057,7.71320689,154.61,154.56,7.71320689]
[1745569377748,7.71320689,154.6,154.56,7.71320689]
[1745569378155,7.71320689,154.59,154.54,81.2]
[1745569378456,7.78918754,154.62,154.54,81.2]
[1745569378457,7.71320689,154.6,154.55,7.71320689]
[1745569379677,7.71320689,154.6,154.56,7.71320689]
[1745569380090,1.32137991,154.62,154.57,7.71320689]
[1745569380302,7.71320689,154.61,154.57,7.71320689]
[1745569381478,7.71320689,154.6,154.56,7.71320689]
[1745569381990,0.03,154.62,154.59,7.71320689]
[1745569382161,0.03,154.62,154.61,52.36285575]
[1745569382364,0.03,154.62,154.61,133.70501732]
[1745569382779,0.03,154.62,154.61,134.99793258]
[1745569383475,0.03,154.62,154.61,165.85076014]
[1745569383671,0.03,154.64,154.62,81.17]
[1745569383862,0.03,154.64,154.63,40.69562468]
[1745569384061,0.03,154.64,154.63,47.16267505]
[1745569387798,0.03,154.64,154.63,22.18813739]
[1745569388691,0.03,154.64,154.63,109.82518776]
[1745569389471,0.03,154.64,154.63,154.47483662]
[1745569389670,0.03,154.66,154.65,26.14216157]
[1745569389881,0.03,154.66,154.65,116.31808371]
[1745569391390,0.03,154.66,154.65,122.78429774]
[1745569391679,0.03,154.66,154.65,116.31808371]
[1745569392105,0.03,154.66,154.65,116.17592214]
[1745569392266,0.03,154.66,154.65,81.17]
[1745569393870,7.74320689,154.66,154.65,81.17]
[1745569394213,7.74320689,154.66,154.61,7.71320689]
[1745569394383,7.74320689,154.66,154.58,126.65905844]
[1745569394384,0.03,154.66,154.63,7.71320689]
[1745569395290,0.03,154.66,154.62,12.04268206]
[1745569396090,12.04268206,154.64,154.58,120.19]
[1745569396281,12.04268206,154.64,154.59,12.04268206]
[1745569396482,13.33406197,154.63,154.59,12.04268206]
[1745569396798,12.04268206,154.64,154.59,12.04268206]
[1745569397087,13.33406197,154.63,154.58,106.23268206]
[1745569397596,12.04268206,154.61,154.56,93.21268206]
[1745569397799,12.04268206,154.6,154.56,93.21268206]
[1745569398687,12.04268206,154.6,154.56,81.17]
[1745569398883,12.04268206,154.58,154.53,12.04268206]
[1745569399268,12.04268206,154.59,154.54,12.04268206]
[1745569399570,12.04268206,154.6,154.55,12.04268206]
[1745569399768,12.04268206,154.59,154.54,12.04268206]
[1745569401069,12.04268206,154.57,154.53,12.04268206]
[1745569401268,12.04268206,154.56,154.52,81.17]
[1745569403068,12.04268206,154.55,154.52,81.17]
[1745569403269,12.04268206,154.56,154.52,81.17]
[1745569403469,12.04268206,154.56,154.52,93.21268206]
[1745569404290,12.04268206,154.58,154.53,12.04268206]
[1745569405394,12.04268206,154.57,154.52,93.21268206]
[1745569405597,12.04268206,154.58,154.53,12.04268206]
[1745569406296,1.29137991,154.6,154.54,12.04268206]
[1745569406600,12.04268206,154.59,154.54,12.04268206]
[1745569406984,12.04268206,154.58,154.54,12.04268206]
[1745569407475,12.04268206,154.58,154.53,12.04268206]
[1745569407792,12.04268206,154.58,154.54,12.04268206]
[1745569409599,12.04268206,154.59,154.54,12.04268206]
[1745569409893,12.04268206,154.59,154.55,12.04268206]
[1745569410270,12.04268206,154.59,154.54,12.04268206]
[1745569411101,12.04268206,154.59,154.55,12.04268206]
[1745569413610,1.29137991,154.61,154.56,12.04268206]
[1745569413787,12.04268206,154.61,154.56,12.04268206]
[1745569414905,12.04268206,154.61,154.57,12.04268206]
[1745569415392,7.71309527,154.61,154.57,7.71309527]
[1745569415780,9.00447518,154.63,154.59,7.71309527]
[1745569415996,9.00447518,154.64,154.59,7.71309527]
[1745569416205,7.71309527,154.62,154.55,95.8467]
[1745569416385,7.71309527,154.62,154.57,7.71309527]
[1745569417304,7.71309527,154.62,154.58,7.71309527]
[1745569418413,7.71309527,154.63,154.58,7.71309527]
[1745569418705,9.00447518,154.64,154.59,7.71309527]
[1745569418908,7.71309527,154.63,154.58,7.71309527]
[1745569419100,9.00447518,154.62,154.57,7.71309527]
[1745569419303,1.29137991,154.64,154.6,7.71309527]
[1745569419518,7.71309527,154.65,154.61,7.71309527]
[1745569419684,9.03447518,154.66,154.61,7.71309527]
[1745569420283,0.03,154.66,154.62,7.71309527]
[1745569421420,12.0734256,154.66,154.62,12.0434256]
[1745569421713,12.0734256,154.66,154.6,12.0434256]
[1745569421714,13.33480551,154.65,154.6,12.0434256]
[1745569422404,12.0734256,154.66,154.61,12.0434256]
[1745569422723,13.36480551,154.66,154.61,12.0434256]
[1745569423019,13.36480551,154.66,154.62,12.0434256]
[1745569423201,13.36480551,154.66,154.61,12.0434256]
[1745569423401,12.0434256,154.65,154.6,12.0434256]
[1745569423703,12.0434256,154.65,154.6,93.2134256]
[1745569424385,12.0434256,154.65,154.61,12.0434256]
[1745569424786,1.32137991,154.66,154.62,12.0434256]
[1745569425018,0.03,154.66,154.62,12.0434256]
[1745569425517,12.0734256,154.66,154.61,12.0434256]
[1745569425813,0.03,154.66,154.63,12.0434256]
[1745569426520,12.0734256,154.66,154.6,94.19]
[1745569426820,12.0734256,154.66,154.61,12.0434256]
[1745569427016,0.03,154.66,154.62,12.0434256]
[1745569427188,0.03,154.66,154.64,12.0434256]
[1745569427397,0.03,154.66,154.63,12.0434256]
[1745569431118,0.03,154.66,154.61,93.2134256]
[1745569431119,12.0734256,154.66,154.61,93.2134256]
[1745569431326,0.03,154.66,154.61,93.2134256]
[1745569431507,0.03,154.66,154.63,12.0434256]
[1745569436398,13.36480551,154.66,154.61,93.2134256]
[1745569438524,13.36480551,154.66,154.61,12.0434256]
[1745569439027,0.03,154.66,154.63,12.0434256]
[1745569441407,0.03,154.66,154.63,7.70716167]
[1745569441610,1.32137991,154.66,154.58,81.17]
[1745569441913,7.70716167,154.64,154.6,7.70716167]
[1745569442711,9.02854158,154.66,154.61,7.70716167]
[1745569443326,1.32137991,154.66,154.61,7.70716167]
[1745569445336,9.02854158,154.66,154.61,7.70716167]
[1745569445636,7.70716167,154.64,154.6,7.70716167]
[1745569446336,7.70716167,154.64,154.59,13.02]
[1745569446337,7.70716167,154.61,154.59,13.02]
[1745569446538,7.70716167,154.62,154.57,7.70716167]
[1745569446832,7.70716167,154.62,154.58,7.70716167]
[1745569447041,7.70716167,154.63,154.58,7.70716167]
[1745569447240,1.29137991,154.65,154.56,81.17]
[1745569447241,8.99854158,154.65,154.57,1.29359539]
[1745569447442,7.70716167,154.64,154.59,7.70716167]
[1745569448340,7.70716167,154.65,154.6,7.70716167]
[1745569449420,1.29137991,154.64,154.6,7.70716167]
[1745569449619,8.99854158,154.64,154.59,7.70716167]
[1745569450933,7.70716167,154.62,154.57,81.17]
[1745569451135,1.29137991,154.64,154.59,7.70716167]
[1745569451446,8.99854158,154.64,154.59,7.70716167]
[1745569453660,8.99854158,154.64,154.58,7.70716167]
[1745569453661,7.70716167,154.63,154.58,7.70716167]
[1745569453861,1.29137991,154.62,154.58,7.70716167]
[1745569454537,8.99854158,154.63,154.58,7.70716167]
[1745569455626,7.70716167,154.62,154.57,88.87716167]
[1745569455854,1.29137991,154.61,154.57,88.87716167]
[1745569456049,8.99854158,154.62,154.57,88.87716167]
[1745569457459,7.70716167,154.61,154.56,7.70716167]
[1745569457752,7.75889776,154.62,154.55,90.51386167]
[1745569457753,8.99854158,154.6,154.55,90.51386167]
[1745569457953,7.70716167,154.58,154.55,81.17]
[1745569458168,7.70716167,154.59,154.55,81.17]
[1745569458528,1.29137991,154.58,154.55,81.17]
[1745569458765,8.99854158,154.58,154.55,81.17]
[1745569459133,7.70716167,154.57,154.52,81.233]
[1745569459352,7.70716167,154.57,154.53,7.70716167]
[1745569459737,7.70716167,154.58,154.52,81.233]
[1745569460061,8.99854158,154.59,154.54,7.70716167]
[1745569460246,7.70716167,154.58,154.54,7.70716167]
[1745569460438,7.70716167,154.57,154.52,0.063]
[1745569460639,8.99854158,154.56,154.52,0.063]
[1745569461933,7.70716167,154.56,154.52,0.063]
[1745569462133,7.70716167,154.57,154.52,7.77016167]
[1745569463345,7.70716167,154.58,154.53,7.70716167]
[1745569463554,8.99854158,154.58,154.53,7.70716167]
[1745569463743,7.70716167,154.58,154.53,7.70716167]
[1745569464238,7.70716167,154.58,154.52,8.1318322]
[1745569464239,1.29137991,154.61,154.54,7.70716167]